{"text_format":"1","workbook":"xlsx","n_sheets":2,"sheets":["словарь","проверка"],"not_rendered":{"charts":1,"images":0,"macros":1,"external_links":0,"defined_names":0,"comments":0,"pivot_tables":0},"unopened":[],"bounds":{"document_bytes":16777216,"sheet_cells":100000,"rows_first":2000,"rows_last":500,"rows_between":2000,"halvings":0,"cell_chars":16384,"cell_head_chars":4096},"cells_cut":0,"cells_raw":0,"read":"whole","date_system":"1900"}

{"sheet":"словарь","index":0,"n_rows":116,"n_cols":5,"rows_kept":116,"cut":false,"hidden":false,"merged":[]}
[]
["goes through for free","проходит бесплатно"]
["competetive","конкурентоспособный"]
["cuisine","кухня"]
["heat up-hot again","подогреть"]
["wholemeal","непросеянная мука"]
["certain","определенный"]
["stew","тушенное мясо"]
["colleague","коллега"]
["currently","в настоящее время"]
["opt for","выбирать"]
["habits","привычки"]
["substitute for","замена для",null,null,"Столбец1"]
["guilty","виновный",{"$f":"--OR(ISNUMBER(SEARCH(Таблица1[Столбец1],B14)))","v":0},null,"шпага"]
["going out","выходить в свет",{"$f":"--OR(ISNUMBER(SEARCH(Таблица1[Столбец1],B15)))","v":0},null,"крылья"]
["strict","строгий, требовательный",{"$f":"--OR(ISNUMBER(SEARCH(Таблица1[Столбец1],B16)))","v":0}]
["raw","сырой",{"$f":"--OR(ISNUMBER(SEARCH(Таблица1[Столбец1],B17)))","v":0}]
["wings","крылья",{"$f":"--OR(ISNUMBER(SEARCH(Таблица1[Столбец1],B18)))","v":1}]
["roast","жарить",{"$f":"--OR(ISNUMBER(SEARCH(Таблица1[Столбец1],B19)))","v":0}]
["noun","существительное",{"$f":"--OR(ISNUMBER(SEARCH(Таблица1[Столбец1],B20)))","v":0}]
["adjective","прилагательное",{"$f":"--OR(ISNUMBER(SEARCH(Таблица1[Столбец1],B21)))","v":0}]
["appearance","появление, внешний вид",{"$f":"--OR(ISNUMBER(SEARCH(Таблица1[Столбец1],B22)))","v":0}]
["junk","брахло",{"$f":"--OR(ISNUMBER(SEARCH(Таблица1[Столбец1],B23)))","v":0}]
["scored","забил",{"$f":"--OR(ISNUMBER(SEARCH(Таблица1[Столбец1],B24)))","v":0}]
["partly","частично",{"$f":"--OR(ISNUMBER(SEARCH(Таблица1[Столбец1],B25)))","v":0}]
["race","гонки, раса",{"$f":"--OR(ISNUMBER(SEARCH(Таблица1[Столбец1],B26)))","v":0}]
["cheering","ободряющий, аплодисменты",{"$f":"--OR(ISNUMBER(SEARCH(Таблица1[Столбец1],B27)))","v":0}]
["loudly","громко",{"$f":"--OR(ISNUMBER(SEARCH(Таблица1[Столбец1],B28)))","v":0}]
["crowd","толпа",{"$f":"--OR(ISNUMBER(SEARCH(Таблица1[Столбец1],B29)))","v":0}]
["shouting","крики",{"$f":"--OR(ISNUMBER(SEARCH(Таблица1[Столбец1],B30)))","v":0}]
["cheat","мошенничать",{"$f":"--OR(ISNUMBER(SEARCH(Таблица1[Столбец1],B31)))","v":0}]
["hit","удар",{"$f":"--OR(ISNUMBER(SEARCH(Таблица1[Столбец1],B32)))","v":0}]
["scoring","счет",{"$f":"--OR(ISNUMBER(SEARCH(Таблица1[Столбец1],B33)))","v":0}]
["sword","меч, сабля, шпага",{"$f":"--OR(ISNUMBER(SEARCH(Таблица1[Столбец1],B34)))","v":1}]
["disgrace","позор",{"$f":"--OR(ISNUMBER(SEARCH(Таблица1[Столбец1],B35)))","v":0}]
["injury","травма",{"$f":"--OR(ISNUMBER(SEARCH(Таблица1[Столбец1],B36)))","v":0}]
["hurt","повредить",{"$f":"--OR(ISNUMBER(SEARCH(Таблица1[Столбец1],B37)))","v":0}]
["recover","восстанавливаться",{"$f":"--OR(ISNUMBER(SEARCH(Таблица1[Столбец1],B38)))","v":0}]
["cheated","обманутый",{"$f":"--OR(ISNUMBER(SEARCH(Таблица1[Столбец1],B39)))","v":0}]
["write off","списывать",{"$f":"--OR(ISNUMBER(SEARCH(Таблица1[Столбец1],B40)))","v":0}]
["hesitate","стесняться",{"$f":"--OR(ISNUMBER(SEARCH(Таблица1[Столбец1],B41)))","v":0}]
["sieve","решето",{"$f":"--OR(ISNUMBER(SEARCH(Таблица1[Столбец1],B42)))","v":0}]
["hypocrite","лицемер",{"$f":"--OR(ISNUMBER(SEARCH(Таблица1[Столбец1],B43)))","v":0}]
["visit-stop by","сходить в",{"$f":"--OR(ISNUMBER(SEARCH(Таблица1[Столбец1],B44)))","v":0}]
["lubricate my larynx","смазать горло",{"$f":"--OR(ISNUMBER(SEARCH(Таблица1[Столбец1],B45)))","v":0}]
["stubborn","упрямый",{"$f":"--OR(ISNUMBER(SEARCH(Таблица1[Столбец1],B46)))","v":0}]
["stain","испачкаться",{"$f":"--OR(ISNUMBER(SEARCH(Таблица1[Столбец1],B47)))","v":0}]
["popped out- quick go","быстро сходить",{"$f":"--OR(ISNUMBER(SEARCH(Таблица1[Столбец1],B48)))","v":0}]
["slave","раб",{"$f":"--OR(ISNUMBER(SEARCH(Таблица1[Столбец1],B49)))","v":0}]
["honourable","почетный",{"$f":"--OR(ISNUMBER(SEARCH(Таблица1[Столбец1],B50)))","v":0}]
["follow","следовать",{"$f":"--OR(ISNUMBER(SEARCH(Таблица1[Столбец1],B51)))","v":0}]
["caught","пойманный",{"$f":"--OR(ISNUMBER(SEARCH(Таблица1[Столбец1],B52)))","v":0}]
["fine","штраф",{"$f":"--OR(ISNUMBER(SEARCH(Таблица1[Столбец1],B53)))","v":0}]
["route","маршрут",{"$f":"--OR(ISNUMBER(SEARCH(Таблица1[Столбец1],B54)))","v":0}]
["strictly","строго",{"$f":"--OR(ISNUMBER(SEARCH(Таблица1[Столбец1],B55)))","v":0}]
["ancient","древний",{"$f":"--OR(ISNUMBER(SEARCH(Таблица1[Столбец1],B56)))","v":0}]
["punishe","наказывать",{"$f":"--OR(ISNUMBER(SEARCH(Таблица1[Столбец1],B57)))","v":0}]
["dishonored","опозоренный",{"$f":"--OR(ISNUMBER(SEARCH(Таблица1[Столбец1],B58)))","v":0}]
["event","мероприятие",{"$f":"--OR(ISNUMBER(SEARCH(Таблица1[Столбец1],B59)))","v":0}]
["discus","метание диска",{"$f":"--OR(ISNUMBER(SEARCH(Таблица1[Столбец1],B60)))","v":0}]
["javelin","дротики",{"$f":"--OR(ISNUMBER(SEARCH(Таблица1[Столбец1],B61)))","v":0}]
["chariot racing","гонки на колесницах",{"$f":"--OR(ISNUMBER(SEARCH(Таблица1[Столбец1],B62)))","v":0}]
["fewer","меньше",{"$f":"--OR(ISNUMBER(SEARCH(Таблица1[Столбец1],B63)))","v":0}]
["decide","решил",{"$f":"--OR(ISNUMBER(SEARCH(Таблица1[Столбец1],B64)))","v":0}]
["existence","существование",{"$f":"--OR(ISNUMBER(SEARCH(Таблица1[Столбец1],B65)))","v":0}]
["pagan","языческий",{"$f":"--OR(ISNUMBER(SEARCH(Таблица1[Столбец1],B66)))","v":0}]
["gradually","постепенно",{"$f":"--OR(ISNUMBER(SEARCH(Таблица1[Столбец1],B67)))","v":0}]
["disappearе","исчезать",{"$f":"--OR(ISNUMBER(SEARCH(Таблица1[Столбец1],B68)))","v":0}]
["reveale","раскрываемый",{"$f":"--OR(ISNUMBER(SEARCH(Таблица1[Столбец1],B69)))","v":0}]
["appreciate","оценить",{"$f":"--OR(ISNUMBER(SEARCH(Таблица1[Столбец1],B70)))","v":0}]
["glory","слава",{"$f":"--OR(ISNUMBER(SEARCH(Таблица1[Столбец1],B71)))","v":0}]
["sufficient","достаточный",{"$f":"--OR(ISNUMBER(SEARCH(Таблица1[Столбец1],B72)))","v":0}]
["ancestral","наследственный",{"$f":"--OR(ISNUMBER(SEARCH(Таблица1[Столбец1],B73)))","v":0}]
["stigma","позор",{"$f":"--OR(ISNUMBER(SEARCH(Таблица1[Столбец1],B74)))","v":0}]
["jealous of","ревновать к",{"$f":"--OR(ISNUMBER(SEARCH(Таблица1[Столбец1],B75)))","v":0}]
["spouse","супруг",{"$f":"--OR(ISNUMBER(SEARCH(Таблица1[Столбец1],B76)))","v":0}]
["chores","хлопоты",{"$f":"--OR(ISNUMBER(SEARCH(Таблица1[Столбец1],B77)))","v":0}]
["expenditure","расход",{"$f":"--OR(ISNUMBER(SEARCH(Таблица1[Столбец1],B78)))","v":0}]
["puberty","половая зрелость",{"$f":"--OR(ISNUMBER(SEARCH(Таблица1[Столбец1],B79)))","v":0}]
["benefit","выгода",{"$f":"--OR(ISNUMBER(SEARCH(Таблица1[Столбец1],B80)))","v":0}]
["get on","ладить",{"$f":"--OR(ISNUMBER(SEARCH(Таблица1[Столбец1],B81)))","v":0}]
["hand me downs","подержанная одежда",{"$f":"--OR(ISNUMBER(SEARCH(Таблица1[Столбец1],B82)))","v":0}]
["tought","учил",{"$f":"--OR(ISNUMBER(SEARCH(Таблица1[Столбец1],B83)))","v":0}]
["little by little","понемногу",{"$f":"--OR(ISNUMBER(SEARCH(Таблица1[Столбец1],B84)))","v":0}]
["prohobit","запрещать",{"$f":"--OR(ISNUMBER(SEARCH(Таблица1[Столбец1],B85)))","v":0}]
["uncovered","непокрытый, вскрытый",{"$f":"--OR(ISNUMBER(SEARCH(Таблица1[Столбец1],B86)))","v":0}]
["step-brother","сводный брат",{"$f":"--OR(ISNUMBER(SEARCH(Таблица1[Столбец1],B87)))","v":0}]
["brother-in-law","деверь, золовка",{"$f":"--OR(ISNUMBER(SEARCH(Таблица1[Столбец1],B88)))","v":0}]
["an only child","один ребенок",{"$f":"--OR(ISNUMBER(SEARCH(Таблица1[Столбец1],B89)))","v":0}]
["talkative","болтливый",{"$f":"--OR(ISNUMBER(SEARCH(Таблица1[Столбец1],B90)))","v":0}]
["taciturn, short-spoken","молчаливый, нееразговорчивый",{"$f":"--OR(ISNUMBER(SEARCH(Таблица1[Столбец1],B91)))","v":0}]
["generous","великодушный",{"$f":"--OR(ISNUMBER(SEARCH(Таблица1[Столбец1],B92)))","v":0}]
["greedy","жадный",{"$f":"--OR(ISNUMBER(SEARCH(Таблица1[Столбец1],B93)))","v":0}]
["evil","злой",{"$f":"--OR(ISNUMBER(SEARCH(Таблица1[Столбец1],B94)))","v":0}]
["patient","терпеливый",{"$f":"--OR(ISNUMBER(SEARCH(Таблица1[Столбец1],B95)))","v":0}]
["impatient, eager","нетерпеливый",{"$f":"--OR(ISNUMBER(SEARCH(Таблица1[Столбец1],B96)))","v":0}]
["selfish","эгоистичный",{"$f":"--OR(ISNUMBER(SEARCH(Таблица1[Столбец1],B97)))","v":0}]
["shy","застенчивый",{"$f":"--OR(ISNUMBER(SEARCH(Таблица1[Столбец1],B98)))","v":0}]
["affectionate","любящий",{"$f":"--OR(ISNUMBER(SEARCH(Таблица1[Столбец1],B99)))","v":0}]
["bossy","властный",{"$f":"--OR(ISNUMBER(SEARCH(Таблица1[Столбец1],B100)))","v":0}]
["moody","угрюмый",{"$f":"--OR(ISNUMBER(SEARCH(Таблица1[Столбец1],B101)))","v":0}]
["reliable","надежный",{"$f":"--OR(ISNUMBER(SEARCH(Таблица1[Столбец1],B102)))","v":0}]
["sensible","разумный, здавомыслящий",{"$f":"--OR(ISNUMBER(SEARCH(Таблица1[Столбец1],B103)))","v":0}]
["both","оба",{"$f":"--OR(ISNUMBER(SEARCH(Таблица1[Столбец1],B104)))","v":0}]
["cliffs","скалы",{"$f":"--OR(ISNUMBER(SEARCH(Таблица1[Столбец1],B105)))","v":0}]
["rough","грубый",{"$f":"--OR(ISNUMBER(SEARCH(Таблица1[Столбец1],B106)))","v":0}]
["tight","плотный",{"$f":"--OR(ISNUMBER(SEARCH(Таблица1[Столбец1],B107)))","v":0}]
["sail","паруса",{"$f":"--OR(ISNUMBER(SEARCH(Таблица1[Столбец1],B108)))","v":0}]
["precious","драгоценно",{"$f":"--OR(ISNUMBER(SEARCH(Таблица1[Столбец1],B109)))","v":0}]
["going to carry on","будет продолжать",{"$f":"--OR(ISNUMBER(SEARCH(Таблица1[Столбец1],B110)))","v":0}]
["stuff","материал, ерунда",{"$f":"--OR(ISNUMBER(SEARCH(Таблица1[Столбец1],B111)))","v":0}]
["carry","нести, проводить",{"$f":"--OR(ISNUMBER(SEARCH(Таблица1[Столбец1],B112)))","v":0}]
["intentions","намерения",{"$f":"--OR(ISNUMBER(SEARCH(Таблица1[Столбец1],B113)))","v":0}]
["arrangements","договоренности",{"$f":"--OR(ISNUMBER(SEARCH(Таблица1[Столбец1],B114)))","v":0}]
["an offer, a suggestion","предложение",{"$f":"--OR(ISNUMBER(SEARCH(Таблица1[Столбец1],B115)))","v":0}]
["prediction","прогнозирование",{"$f":"--OR(ISNUMBER(SEARCH(Таблица1[Столбец1],B116)))","v":0}]

{"sheet":"проверка","index":1,"n_rows":25,"n_cols":21,"rows_kept":25,"cut":false,"hidden":false,"merged":[[21,0,21,2]]}
[]
[1,{"$f":"СЛЯЧЕЙКА(словарь!$A$2:INDEX(словарь!A:A,MATCH(LOOKUP(\"яяя\",словарь!$A$2:$A$1000),словарь!$A$2:$A$1000,0)+ROW(словарь!$A$2)-1))","v":"carry"},null,{"$f":"IF(VLOOKUP(\"*\"&B2&\"*\",словарь!$A$2:$B$1000, 2, FALSE)=C2,1,0)","v":0}]
[2,{"$f":"СЛЯЧЕЙКА(словарь!$A$2:INDEX(словарь!A:A,MATCH(LOOKUP(\"яяя\",словарь!$A$2:$A$1000),словарь!$A$2:$A$1000,0)+ROW(словарь!$A$2)-1))","v":"strictly"},null,{"$f":"IF(VLOOKUP(\"*\"&B3&\"*\",словарь!$A$2:$B$1000, 2, FALSE)=C3,1,0)","v":0}]
[3,{"$f":"СЛЯЧЕЙКА(словарь!$A$2:INDEX(словарь!A:A,MATCH(LOOKUP(\"яяя\",словарь!$A$2:$A$1000),словарь!$A$2:$A$1000,0)+ROW(словарь!$A$2)-1))","v":"recover"},null,{"$f":"IF(VLOOKUP(\"*\"&B4&\"*\",словарь!$A$2:$B$1000, 2, FALSE)=C4,1,0)","v":0}]
[4,{"$f":"СЛЯЧЕЙКА(словарь!$A$2:INDEX(словарь!A:A,MATCH(LOOKUP(\"яяя\",словарь!$A$2:$A$1000),словарь!$A$2:$A$1000,0)+ROW(словарь!$A$2)-1))","v":"chariot racing"},null,{"$f":"IF(VLOOKUP(\"*\"&B5&\"*\",словарь!$A$2:$B$1000, 2, FALSE)=C5,1,0)","v":0},null,null,null,"2018-02-12","2018-02-13","2018-02-14","2018-02-15","2018-02-16","2018-02-17","2018-02-18","2018-02-19","2018-02-20","2018-02-21","2018-02-22","2018-02-23","2018-02-24","2018-02-25"]
[5,{"$f":"СЛЯЧЕЙКА(словарь!$A$2:INDEX(словарь!A:A,MATCH(LOOKUP(\"яяя\",словарь!$A$2:$A$1000),словарь!$A$2:$A$1000,0)+ROW(словарь!$A$2)-1))","v":"loudly"},null,{"$f":"IF(VLOOKUP(\"*\"&B6&\"*\",словарь!$A$2:$B$1000, 2, FALSE)=C6,1,0)","v":0},null,null,null,20]
[6,{"$f":"СЛЯЧЕЙКА(словарь!$A$2:INDEX(словарь!A:A,MATCH(LOOKUP(\"яяя\",словарь!$A$2:$A$1000),словарь!$A$2:$A$1000,0)+ROW(словарь!$A$2)-1))","v":"precious"},null,{"$f":"IF(VLOOKUP(\"*\"&B7&\"*\",словарь!$A$2:$B$1000, 2, FALSE)=C7,1,0)","v":0}]
[7,{"$f":"СЛЯЧЕЙКА(словарь!$A$2:INDEX(словарь!A:A,MATCH(LOOKUP(\"яяя\",словарь!$A$2:$A$1000),словарь!$A$2:$A$1000,0)+ROW(словарь!$A$2)-1))","v":"habits"},null,{"$f":"IF(VLOOKUP(\"*\"&B8&\"*\",словарь!$A$2:$B$1000, 2, FALSE)=C8,1,0)","v":0}]
[8,{"$f":"СЛЯЧЕЙКА(словарь!$A$2:INDEX(словарь!A:A,MATCH(LOOKUP(\"яяя\",словарь!$A$2:$A$1000),словарь!$A$2:$A$1000,0)+ROW(словарь!$A$2)-1))","v":"opt for"},null,{"$f":"IF(VLOOKUP(\"*\"&B9&\"*\",словарь!$A$2:$B$1000, 2, FALSE)=C9,1,0)","v":0}]
[9,{"$f":"СЛЯЧЕЙКА(словарь!$A$2:INDEX(словарь!A:A,MATCH(LOOKUP(\"яяя\",словарь!$A$2:$A$1000),словарь!$A$2:$A$1000,0)+ROW(словарь!$A$2)-1))","v":"shy"},null,{"$f":"IF(VLOOKUP(\"*\"&B10&\"*\",словарь!$A$2:$B$1000, 2, FALSE)=C10,1,0)","v":0}]
[10,{"$f":"СЛЯЧЕЙКА(словарь!$A$2:INDEX(словарь!A:A,MATCH(LOOKUP(\"яяя\",словарь!$A$2:$A$1000),словарь!$A$2:$A$1000,0)+ROW(словарь!$A$2)-1))","v":"hurt"},null,{"$f":"IF(VLOOKUP(\"*\"&B11&\"*\",словарь!$A$2:$B$1000, 2, FALSE)=C11,1,0)","v":0}]
[11,{"$f":"СЛЯЧЕЙКА(словарь!$A$2:INDEX(словарь!A:A,MATCH(LOOKUP(\"яяя\",словарь!$A$2:$A$1000),словарь!$A$2:$A$1000,0)+ROW(словарь!$A$2)-1))","v":"benefit"},null,{"$f":"IF(VLOOKUP(\"*\"&B12&\"*\",словарь!$A$2:$B$1000, 2, FALSE)=C12,1,0)","v":0}]
[12,{"$f":"СЛЯЧЕЙКА(словарь!$A$2:INDEX(словарь!A:A,MATCH(LOOKUP(\"яяя\",словарь!$A$2:$A$1000),словарь!$A$2:$A$1000,0)+ROW(словарь!$A$2)-1))","v":"injury"},null,{"$f":"IF(VLOOKUP(\"*\"&B13&\"*\",словарь!$A$2:$B$1000, 2, FALSE)=C13,1,0)","v":0}]
[13,{"$f":"СЛЯЧЕЙКА(словарь!$A$2:INDEX(словарь!A:A,MATCH(LOOKUP(\"яяя\",словарь!$A$2:$A$1000),словарь!$A$2:$A$1000,0)+ROW(словарь!$A$2)-1))","v":"sword"},null,{"$f":"IF(VLOOKUP(\"*\"&B14&\"*\",словарь!$A$2:$B$1000, 2, FALSE)=C14,1,0)","v":0}]
[14,{"$f":"СЛЯЧЕЙКА(словарь!$A$2:INDEX(словарь!A:A,MATCH(LOOKUP(\"яяя\",словарь!$A$2:$A$1000),словарь!$A$2:$A$1000,0)+ROW(словарь!$A$2)-1))","v":"stubborn"},null,{"$f":"IF(VLOOKUP(\"*\"&B15&\"*\",словарь!$A$2:$B$1000, 2, FALSE)=C15,1,0)","v":0}]
[15,{"$f":"СЛЯЧЕЙКА(словарь!$A$2:INDEX(словарь!A:A,MATCH(LOOKUP(\"яяя\",словарь!$A$2:$A$1000),словарь!$A$2:$A$1000,0)+ROW(словарь!$A$2)-1))","v":"raw"},null,{"$f":"IF(VLOOKUP(\"*\"&B16&\"*\",словарь!$A$2:$B$1000, 2, FALSE)=C16,1,0)","v":0}]
[16,{"$f":"СЛЯЧЕЙКА(словарь!$A$2:INDEX(словарь!A:A,MATCH(LOOKUP(\"яяя\",словарь!$A$2:$A$1000),словарь!$A$2:$A$1000,0)+ROW(словарь!$A$2)-1))","v":"prohobit"},null,{"$f":"IF(VLOOKUP(\"*\"&B17&\"*\",словарь!$A$2:$B$1000, 2, FALSE)=C17,1,0)","v":0}]
[17,{"$f":"СЛЯЧЕЙКА(словарь!$A$2:INDEX(словарь!A:A,MATCH(LOOKUP(\"яяя\",словарь!$A$2:$A$1000),словарь!$A$2:$A$1000,0)+ROW(словарь!$A$2)-1))","v":"tight"},null,{"$f":"IF(VLOOKUP(\"*\"&B18&\"*\",словарь!$A$2:$B$1000, 2, FALSE)=C18,1,0)","v":0}]
[18,{"$f":"СЛЯЧЕЙКА(словарь!$A$2:INDEX(словарь!A:A,MATCH(LOOKUP(\"яяя\",словарь!$A$2:$A$1000),словарь!$A$2:$A$1000,0)+ROW(словарь!$A$2)-1))","v":"substitute for"},null,{"$f":"IF(VLOOKUP(\"*\"&B19&\"*\",словарь!$A$2:$B$1000, 2, FALSE)=C19,1,0)","v":0}]
[19,{"$f":"СЛЯЧЕЙКА(словарь!$A$2:INDEX(словарь!A:A,MATCH(LOOKUP(\"яяя\",словарь!$A$2:$A$1000),словарь!$A$2:$A$1000,0)+ROW(словарь!$A$2)-1))","v":"sieve"},null,{"$f":"IF(VLOOKUP(\"*\"&B20&\"*\",словарь!$A$2:$B$1000, 2, FALSE)=C20,1,0)","v":0}]
[20,{"$f":"СЛЯЧЕЙКА(словарь!$A$2:INDEX(словарь!A:A,MATCH(LOOKUP(\"яяя\",словарь!$A$2:$A$1000),словарь!$A$2:$A$1000,0)+ROW(словарь!$A$2)-1))","v":"little by little"},null,{"$f":"IF(VLOOKUP(\"*\"&B21&\"*\",словарь!$A$2:$B$1000, 2, FALSE)=C21,1,0)","v":0}]
["ИТОГО:",null,null,{"$f":"SUM(D2:D21)","v":0}]
[]
[]
[null,"sword","шпага",{"$f":"IF(NOT(ISERROR(MATCH(C25,B25,1))),1,0)","v":1}]